fUSD/lending_fUSD_20240708
["ID","MTS","AMOUNT","RATE_DAILY","PERIOD"]
[331447087,1720421148775,-500.0,0.00034028,33]
[331447088,1720421148840,-1730.82,0.00034028,41]
[331447089,1720421148899,-5000.0,0.00034028,30]
[331447090,1720421148965,-500.0,0.00034028,45]
[331447091,1720421149027,-1083.94,0.00034028,39]
[331447092,1720421149088,-500.0,0.00034028,34]
[331447093,1720421149150,-1730.82,0.00034028,42]
[331447094,1720421149214,-5000.0,0.00034028,31]
[331447095,1720421149275,-500.0,0.00034028,46]
[331447096,1720421149342,-1083.94,0.00034028,40]
[331447097,1720421149409,-4173.60510659,0.00034028,32]
[331447098,1720421149476,-1730.82,0.00034028,43]
[331447099,1720421149540,-500.0,0.00034028,47]
[331447100,1720421149607,-500.0,0.00034028,35]
[331447101,1720421149672,-1083.94,0.00034028,41]
[331447102,1720421149736,-1730.82,0.00034028,44]
[331447103,1720421149798,-500.0,0.00034028,48]
[331447104,1720421149858,-1337.69,0.00034028,30]
[331447105,1720421149919,-500.0,0.00034028,36]
[331447106,1720421149982,-1083.94,0.00034028,42]
[331447107,1720421150044,-1381.74,0.00034028,30]
[331447108,1720421150103,-500.0,0.00034028,49]
[331447109,1720421150166,-1730.82,0.00034028,45]
[331447110,1720421150224,-1337.69,0.00034028,31]
[331447111,1720421150285,-500.0,0.00034028,37]
[331447112,1720421150345,-1083.94,0.00034028,43]
[331447113,1720421150406,-1381.74,0.00034028,31]
[331447114,1720421150465,-500.0,0.00034028,50]
[331447115,1720421150525,-1337.69,0.00034028,32]
[331447116,1720421150586,-500.0,0.00034028,38]
[331447117,1720421150646,-1083.94,0.00034028,44]
[331447118,1720421150712,-1381.74,0.00034028,32]
[331447119,1720421150776,-500.0,0.00034028,51]
[331447120,1720421150837,-1337.69,0.00034028,33]
[331447121,1720421150897,-1730.82,0.00034028,46]
[331447122,1720421150962,-500.0,0.00034028,39]
[331447123,1720421151026,-1381.74,0.00034028,33]
[331447124,1720421151084,-500.0,0.00034028,36]
[331447125,1720421151140,-367.6,0.00034028,52]
[331447126,1720421151200,-1337.69,0.00034028,34]
[331447127,1720421151260,-1730.82,0.00034028,47]
[331447128,1720421151321,-1083.94,0.00034028,45]
[331447129,1720421151382,-1381.74,0.00034028,34]
[331447130,1720421151440,-500.0,0.00034028,37]
[331447131,1720421151496,-1730.82,0.00034028,48]
[331447132,1720421151556,-1337.69,0.00034028,35]
[331447133,1720421151612,-500.0,0.00034028,30]
[331447134,1720421151684,-500.0,0.00034028,40]
[331447135,1720421151743,-1083.94,0.00034028,46]
[331447136,1720421151803,-1381.74,0.00034028,35]
[331447137,1720421151862,-500.0,0.00034028,38]
[331447138,1720421151923,-1007.55,0.00034028,30]
[331447139,1720421151982,-1337.69,0.00034028,36]
[331447140,1720421152042,-1730.82,0.00034028,49]
[331447141,1720421152101,-500.0,0.00034028,31]
[331447142,1720421152163,-556.1400797,0.00034028,41]
[331447143,1720421152219,-1381.74,0.00034028,36]
[331447144,1720421152276,-500.0,0.00034028,39]
[331447145,1720421152331,-1083.94,0.00034028,47]
[331447146,1720421152390,-1337.69,0.00034028,37]
[331447147,1720421152446,-500.0,0.00034028,32]
[331447148,1720421152506,-1381.74,0.00034028,37]
[331447149,1720421152561,-1083.94,0.00034028,48]
[331447150,1720421152626,-500.0,0.00034028,40]
[331447151,1720421152680,-1337.69,0.00034028,38]
[331447152,1720421152737,-500.0,0.00034028,33]
[331447153,1720421152791,-1381.74,0.00034028,38]
[331447154,1720421152850,-1007.55,0.00034028,31]
[331447155,1720421152906,-1083.94,0.00034028,49]
[331447156,1720421152963,-500.0,0.00034028,41]
[331447157,1720421153016,-1730.82,0.00034028,50]
[331447158,1720421153076,-1337.69,0.00034028,39]
[331447159,1720421153136,-500.0,0.00034028,34]
[331447160,1720421153192,-1007.55,0.00034028,32]
[331447161,1720421153251,-1083.94,0.00034028,50]
[331447162,1720421153304,-500.0,0.00034028,42]
[331447163,1720421153363,-1730.82,0.00034028,51]
[331447164,1720421153417,-1381.74,0.00034028,39]
[331447165,1720421153484,-1337.69,0.00034028,40]
[331447166,1720421153542,-1007.55,0.00034028,33]
[331447167,1720421153603,-500.0,0.00034028,35]
[331447168,1720421153659,-1083.94,0.00034028,51]
[331447169,1720421153720,-1730.82,0.00034028,52]
[331447170,1720421153776,-446.064054,0.00034028,43]
[331447171,1720421153835,-1381.74,0.00034028,40]
[331447172,1720421153893,-1337.69,0.00034028,41]
[331447173,1720421153957,-1007.55,0.00034028,34]
[331447174,1720421154016,-1083.94,0.00034028,52]
[331447175,1720421154081,-1381.74,0.00034028,41]
[331447176,1720421154144,-1337.69,0.00034028,42]
[331447177,1720421154208,-1007.55,0.00034028,35]
[331447178,1720421154274,-500.0,0.00034028,36]
[331447179,1720421154337,-1084.09898221,0.00034028,53]
[331447180,1720421154629,-1381.74,0.00034028,42]
[331447181,1720421154695,-1730.86273715,0.00034028,53]
[331447182,1720421154760,-1337.69,0.00034028,43]
[331447183,1720421154830,-500.0,0.00034028,37]
[331447184,1720421154898,-1007.55,0.00034028,36]
[331447185,1720421154967,-1337.69,0.00034028,44]
[331447186,1720421155031,-1381.74,0.00034028,43]
[331447187,1720421155092,-500.0,0.00034028,38]
[331447188,1720421155152,-1007.55,0.00034028,37]
[331447189,1720421155214,-1337.69,0.00034028,45]
[331447190,1720421155272,-1381.74,0.00034028,44]
[331447191,1720421155335,-500.0,0.00034028,39]
[331447192,1720421155394,-1007.55,0.00034028,38]
[331447193,1720421155457,-1337.69,0.00034028,46]
[331447194,1720421155520,-1381.74,0.00034028,45]
[331447195,1720421155587,-1007.55,0.00034028,39]
[331447196,1720421155649,-332.65899689,0.00034028,40]
[331447197,1720421155717,-1337.69,0.00034028,47]
[331447198,1720421155784,-1007.55,0.00034028,40]
[331447199,1720421155851,-1337.69,0.00034028,48]
[331447200,1720421155913,-1381.74,0.00034028,46]
[331447201,1720421155982,-1337.69,0.00034028,49]
[331447202,1720421156043,-1007.55,0.00034028,41]
[331447203,1720421156104,-1337.69,0.00034028,50]
[331447204,1720421156162,-1381.74,0.00034028,47]
[331447205,1720421156223,-1007.55,0.00034028,42]
[331447206,1720421156280,-1337.69,0.00034028,51]
[331447207,1720421156336,-1381.74,0.00034028,48]
[331447208,1720421156394,-1007.55,0.00034028,43]
[331447209,1720421156453,-1337.69,0.00034028,52]
[331447210,1720421156514,-1381.74,0.00034028,49]
[331447211,1720421156572,-1007.55,0.00034028,44]
[331447212,1720421156636,-1381.74,0.00034028,50]
[331447213,1720421156699,-1007.55,0.00034028,45]
[331447214,1720421156765,-1007.55,0.00034028,46]
[331447215,1720421156833,-1381.74,0.00034028,51]
[331447216,1720421156894,-1007.55,0.00034028,47]
[331447217,1720421156959,-1381.74,0.00034028,52]
[331447218,1720421157026,-1007.55,0.00034028,48]
[331447219,1720421157096,-1381.87364189,0.00034028,53]
[331447220,1720421157161,-1126.71,0.00034028,30]
[331447221,1720421157228,-1007.55,0.00034028,49]
[331447222,1720421157292,-500.0,0.00034028,30]
[331447223,1720421157356,-1007.55,0.00034028,50]
[331447224,1720421157420,-610.67,0.00034028,30]
[331447225,1720421157484,-1126.71,0.00034028,31]
[331447226,1720421157546,-500.0,0.00034028,31]
[331447227,1720421157612,-610.67,0.00034028,31]
[331447228,1720421157674,-1007.55,0.00034028,51]
[331447229,1720421157738,-610.67,0.00034028,32]
[331447230,1720421157799,-1007.55,0.00034028,52]
[331447231,1720421157864,-627.16,0.00034028,30]
[331447232,1720421157926,-1126.71,0.00034028,32]
[331447233,1720421157994,-610.67,0.00034028,33]
[331447234,1720421158059,-1126.71,0.00034028,33]
[331447235,1720421158128,-627.16,0.00034028,31]
[331447236,1720421158187,-1007.71,0.00034028,53]
[331447237,1720421158249,-500.0,0.00034028,32]
[331447238,1720421158308,-610.67,0.00034028,34]
[331447239,1720421158375,-2009.73,0.00034028,30]
[331447240,1720421158441,-627.16,0.00034028,32]
[331447241,1720421158507,-1126.71,0.00034028,34]
[331447242,1720421158572,-609.75556096,0.00034028,33]
[331447243,1720421158639,-2009.73,0.00034028,31]
[331447244,1720421158698,-610.67,0.00034028,35]
[331447245,1720421158757,-627.16,0.00034028,33]
[331447246,1720421158818,-1126.71,0.00034028,35]
[331447247,1720421158880,-2009.73,0.00034028,32]
[331447248,1720421158945,-500.0,0.00034028,30]
[331447249,1720421159007,-627.16,0.00034028,34]
[331447250,1720421159070,-1126.71,0.00034028,36]
[331447252,1720421159131,-500.0,0.00034028,31]
[331447253,1720421159198,-2009.73,0.00034028,33]
[331447254,1720421159269,-627.16,0.00034028,35]
[331447255,1720421159335,-1126.71,0.00034028,37]
[331447256,1720421159397,-610.67,0.00034028,36]
[331447257,1720421159460,-500.0,0.00034028,32]
[331447258,1720421159524,-627.16,0.00034028,36]
[331447259,1720421159588,-1337.73919173,0.00034028,53]
[331447260,1720421159648,-610.67,0.00034028,37]
[331447261,1720421159714,-1126.71,0.00034028,38]
[331447262,1720421159774,-2009.73,0.00034028,34]
[331447263,1720421159837,-500.0,0.00034028,33]
[331447264,1720421159897,-627.16,0.00034028,37]
[331447265,1720421159966,-610.67,0.00034028,38]
[331447266,1720421160025,-1126.71,0.00034028,39]
[331447267,1720421160095,-2009.73,0.00034028,35]
[331447268,1720421160163,-500.0,0.00034028,34]
[331447269,1720421160228,-627.16,0.00034028,38]
[331447270,1720421160292,-1126.71,0.00034028,40]
[331447271,1720421160355,-610.67,0.00034028,39]
[331447272,1720421160422,-627.16,0.00034028,39]
[331447273,1720421160486,-869.58,0.00034028,30]
[331447274,1720421160552,-500.0,0.00034028,35]
[331447275,1720421160612,-1126.71,0.00034028,41]
[331447276,1720421160680,-2009.73,0.00034028,36]
[331447277,1720421160739,-610.67,0.00034028,40]
[331447278,1720421160802,-869.58,0.00034028,31]
[331447279,1720421160858,-500.0,0.00034028,36]
[331447280,1720421160918,-627.16,0.00034028,40]
[331447281,1720421160978,-1126.71,0.00034028,42]
[331447282,1720421161038,-2009.73,0.00034028,37]
[331447283,1720421161096,-610.67,0.00034028,41]
[331447284,1720421161133,-869.58,0.00034028,32]
[331447285,1720421161380,-627.16,0.00034028,41]
[331447286,1720421161419,-610.67,0.00034028,42]
[331447287,1720421161455,-869.58,0.00034028,33]
[331447288,1720421161494,-1126.71,0.00034028,43]
[331447289,1720421161531,-627.16,0.00034028,42]
[331447290,1720421161568,-500.0,0.00034028,37]
[331447291,1720421161605,-610.67,0.00034028,43]
[331447292,1720421161642,-2009.73,0.00034028,38]
[331447293,1720421161678,-1126.71,0.00034028,44]
[331447294,1720421161715,-869.58,0.00034028,34]
[331447295,1720421161751,-500.0,0.00034028,30]
[331447296,1720421161788,-500.51298073,0.00034028,30]
[331447297,1720421161825,-627.16,0.00034028,43]
[331447298,1720421161869,-500.0,0.00034028,38]
[331447299,1720421161907,-610.67,0.00034028,44]
[331447300,1720421161944,-1126.71,0.00034028,45]
[331447301,1720421161980,-627.16,0.00034028,44]
[331447302,1720421162018,-500.0,0.00034028,31]
[331447303,1720421162056,-2009.73,0.00034028,39]
[331447304,1720421162093,-869.58,0.00034028,35]
[331447305,1720421162131,-500.0,0.00034028,39]
[331447306,1720421162170,-610.67,0.00034028,45]
[331447307,1720421162207,-1126.71,0.00034028,46]
[331447308,1720421162244,-500.0,0.00034028,32]
[331447309,1720421162281,-2009.73,0.00034028,40]
[331447310,1720421162317,-869.58,0.00034028,36]
[331447311,1720421162358,-500.0,0.00034028,40]
[331447312,1720421162398,-627.16,0.00034028,45]
[331447313,1720421162436,-610.67,0.00034028,46]
[331447314,1720421162473,-1126.71,0.00034028,47]
[331447315,1720421162510,-869.58,0.00034028,37]
[331447316,1720421162547,-2009.73,0.00034028,41]
[331447317,1720421162584,-500.0,0.00034028,41]
[331447318,1720421162623,-610.67,0.00034028,47]
[331447319,1720421162666,-627.16,0.00034028,46]
[331447320,1720421162704,-1126.71,0.00034028,48]
[331447321,1720421162743,-500.0,0.00034028,33]
[331447322,1720421162780,-869.58,0.00034028,38]
[331447323,1720421162817,-500.0,0.00034028,42]
[331447324,1720421162855,-2009.73,0.00034028,42]
[331447325,1720421162891,-610.67,0.00034028,48]
[331447326,1720421162926,-627.16,0.00034028,47]
[331447327,1720421162963,-1126.71,0.00034028,49]
[331447328,1720421163000,-362.45541384,0.00034028,43]
[331447329,1720421163039,-869.58,0.00034028,39]
[331447330,1720421163075,-2009.73,0.00034028,43]
[331447331,1720421163115,-610.67,0.00034028,49]
[331447332,1720421163154,-627.16,0.00034028,48]
[331447333,1720421163193,-500.0,0.00034028,30]
[331447334,1720421163233,-1126.71,0.00034028,50]
[331447335,1720421163271,-869.58,0.00034028,40]
[331447336,1720421163308,-2009.73,0.00034028,44]
[331447337,1720421163346,-500.0,0.00034028,34]
[331447338,1720421163383,-610.67,0.00034028,50]
[331447339,1720421163420,-627.16,0.00034028,49]
[331447340,1720421163458,-1126.71,0.00034028,51]
[331447341,1720421163496,-2009.73,0.00034028,45]
[331447342,1720421163533,-869.58,0.00034028,41]
[331447343,1720421163569,-314.95813847,0.00034028,35]
[331447344,1720421163611,-610.67,0.00034028,51]
[331447345,1720421163650,-500.0,0.00034028,30]
[331447346,1720421163688,-627.16,0.00034028,50]
[331447347,1720421163732,-1126.71,0.00034028,52]
[331447348,1720421163773,-500.0,0.00034028,31]
[331447349,1720421163813,-2009.73,0.00034028,46]
[331447350,1720421163853,-869.58,0.00034028,42]
[331447351,1720421163888,-610.67,0.00034028,52]
[331447352,1720421163925,-500.0,0.00034028,31]
[331447353,1720421163962,-627.16,0.00034028,51]
[331447354,1720421164001,-1126.94576882,0.00034028,53]
[331447355,1720421164039,-500.0,0.00034028,32]
[331447356,1720421164078,-869.58,0.00034028,43]
[331447357,1720421164117,-610.83366601,0.00034028,53]
[331447358,1720421164155,-500.0,0.00034028,33]
[331447359,1720421164194,-869.58,0.00034028,44]
[331447360,1720421164233,-500.0,0.00034028,32]
[331447361,1720421164271,-627.16,0.00034028,52]
[331447362,1720421164309,-500.0,0.00034028,34]
[331447363,1720421164348,-869.58,0.00034028,45]
[331447364,1720421164388,-627.2212431,0.00034028,53]
[331447365,1720421164428,-500.0,0.00034028,33]
[331447366,1720421164469,-500.0,0.00034028,35]
[331447367,1720421164510,-869.58,0.00034028,46]
[331447368,1720421164554,-500.0,0.00034028,36]
[331447369,1720421164596,-500.0,0.00034028,34]
[331447370,1720421164639,-869.58,0.00034028,47]
[331447371,1720421164680,-552.47,0.00034028,30]
[331447372,1720421164721,-500.0,0.00034028,35]
[331447373,1720421164759,-500.0,0.00034028,37]
[331447374,1720421164798,-869.58,0.00034028,48]
[331447375,1720421164835,-552.47,0.00034028,31]
[331447376,1720421164874,-500.0,0.00034028,36]
[331447377,1720421164911,-869.58,0.00034028,49]
[331447378,1720421164951,-552.47,0.00034028,32]
[331447379,1720421164990,-500.0,0.00034028,37]
[331447380,1720421165030,-500.0,0.00034028,30]
[331447381,1720421165068,-869.58,0.00034028,50]
[331447382,1720421165109,-552.47,0.00034028,33]
[331447383,1720421165148,-500.0,0.00034028,38]
[331447384,1720421165186,-500.0,0.00034028,31]
[331447385,1720421165228,-869.58,0.00034028,51]
[331447386,1720421165268,-500.0,0.00034028,30]
[331447387,1720421165305,-512.65477952,0.00034028,39]
[331447388,1720421165615,-500.0,0.00034028,32]
[331447389,1720421165663,-869.58,0.00034028,52]
[331447390,1720421165702,-552.47,0.00034028,34]
[331447391,1720421165741,-500.0,0.00034028,33]
[331447392,1720421165780,-869.76143685,0.00034028,53]
[331447393,1720421165821,-500.0,0.00034028,31]
[331447394,1720421165861,-552.47,0.00034028,35]
[331447395,1720421165899,-513.75877692,0.00034028,30]
[331447396,1720421165940,-500.0,0.00034028,34]
[331447397,1720421165982,-500.0,0.00034028,32]
[331447398,1720421166020,-552.47,0.00034028,36]
[331447399,1720421166058,-512.25731562,0.00034028,35]
[331447400,1720421166101,-2027.38143477,0.00034028,30]
[331447401,1720421166141,-500.0,0.00034028,33]
[331447402,1720421166180,-552.47,0.00034028,37]
[331447403,1720421166220,-500.0,0.00034028,34]
[331447404,1720421166260,-500.0,0.00034028,35]
[331447405,1720421166299,-552.47,0.00034028,38]
[331447406,1720421166337,-552.47,0.00034028,39]
[331447407,1720421166375,-232.21436039,0.00034028,30]
[331447408,1720421166413,-552.47,0.00034028,40]
[331447409,1720421166451,-500.0,0.00034028,30]
[331447410,1720421166490,-552.47,0.00034028,41]
[331447411,1720421166527,-500.0,0.00034028,31]
[331447412,1720421166564,-552.47,0.00034028,42]
[331447413,1720421166604,-500.0,0.00034028,32]
[331447414,1720421166641,-552.47,0.00034028,43]
[331447415,1720421166678,-2009.73,0.00034028,47]
[331447416,1720421166717,-552.47,0.00034028,44]
[331447417,1720421166754,-2009.73,0.00034028,48]
[331447418,1720421166790,-552.47,0.00034028,45]
[331447419,1720421166827,-2009.73,0.00034028,49]
[331447420,1720421166866,-552.47,0.00034028,46]
[331447421,1720421166902,-2009.73,0.00034028,50]
[331447422,1720421166938,-552.47,0.00034028,47]
[331447423,1720421166975,-500.0,0.00034028,30]
[331447424,1720421167011,-2009.73,0.00034028,51]
[331447425,1720421167047,-552.47,0.00034028,48]
[331447426,1720421167086,-500.0,0.00034028,31]
[331447427,1720421167124,-500.0,0.00034028,36]
[331447428,1720421167161,-2009.73,0.00034028,52]
[331447429,1720421167198,-552.47,0.00034028,49]
[331447430,1720421167236,-500.0,0.00034028,32]
[331447431,1720421167273,-500.0,0.00034028,37]
[331447432,1720421167309,-509.86006978,0.00034028,30]
[331447433,1720421167345,-504.83965885,0.00034028,30]
[331447434,1720421167383,-552.47,0.00034028,50]
[331447435,1720421167418,-500.0,0.00034028,30]
[331447436,1720421167456,-500.0,0.00034028,33]
[331447437,1720421167494,-500.0,0.00034028,38]
[331447438,1720421167531,-552.47,0.00034028,51]
[331447439,1720421167567,-511.81454927,0.00034028,31]
[331447440,1720421167606,-2009.91979093,0.00034028,53]
[331447441,1720421167644,-500.0,0.00034028,30]
[331447442,1720421167680,-500.0,0.00034028,39]
[331447443,1720421167716,-505.20408323,0.00034028,34]
[331447444,1720421167754,-552.47,0.00034028,52]
[331447445,1720421167792,-500.0,0.00034028,40]
[331447446,1720421167832,-530.42504575,0.00034028,31]
[331447447,1720421167876,-552.59,0.00034028,53]
[331447448,1720421167915,-500.0,0.00034028,41]
[331447449,1720421167952,-500.0,0.00034028,42]
[331447450,1720421167989,-500.0,0.00034028,43]
[331447451,1720421168027,-500.0,0.00034028,30]
[331447452,1720421168063,-500.0,0.00034028,31]
[331447453,1720421168099,-500.0,0.00034028,44]
[331447454,1720421168135,-500.0,0.00034028,30]
[331447455,1720421168173,-541.7127117,0.00034028,30]
[331447456,1720421168209,-500.0,0.00034028,45]
[331447457,1720421168246,-500.0,0.00034028,32]
[331447458,1720421168284,-500.0,0.00034028,30]
[331447459,1720421168318,-500.0,0.00034028,30]
[331447460,1720421168356,-500.0,0.00034028,46]
[331447461,1720421168393,-500.0,0.00034028,33]
[331447462,1720421168430,-500.0,0.00034028,31]
[331447463,1720421168465,-500.0,0.00034028,31]
[331447464,1720421168502,-500.0,0.00034028,47]
[331447465,1720421168539,-500.0,0.00034028,34]
[331447466,1720421168577,-500.0,0.00034028,32]
[331447467,1720421168620,-500.0,0.00034028,32]
[331447468,1720421168667,-550.43593494,0.00034028,30]
[331447469,1720421168705,-500.0,0.00034028,33]
[331447470,1720421168743,-500.0,0.00034028,33]
[331447471,1720421168781,-293.36551406,0.00034028,48]
[331447472,1720421168817,-500.0,0.00034028,34]
[331447473,1720421168855,-518.99977649,0.00034028,35]
[331447474,1720421168892,-500.0,0.00034028,34]
[331447475,1720421168929,-500.0,0.00034028,35]
[331447476,1720421168969,-1390.35,0.00034028,30]
[331447477,1720421169007,-500.0,0.00034028,36]
[331447478,1720421169044,-500.0,0.00034028,30]
[331447479,1720421169086,-515.2,0.00034028,30]
[331447480,1720421169125,-1390.35,0.00034028,31]
[331447481,1720421169165,-500.0,0.00034028,37]
[331447482,1720421169205,-512.32507833,0.00034028,31]
[331447483,1720421169244,-515.2,0.00034028,31]
[331447484,1720421169284,-1390.35,0.00034028,32]
[331447485,1720421169322,-500.0,0.00034028,38]
[331447486,1720421169361,-515.2,0.00034028,32]
[331447487,1720421169399,-1390.35,0.00034028,33]
[331447488,1720421169439,-618.93875623,0.00034028,39]
[331447489,1720421169478,-515.2,0.00034028,33]
[331447490,1720421169516,-1390.35,0.00034028,34]
[331447491,1720421169557,-500.0,0.00034028,30]
[331447492,1720421169842,-515.2,0.00034028,34]
[331447493,1720421169881,-1390.35,0.00034028,35]
[331447494,1720421169920,-500.0,0.00034028,31]
[331447495,1720421169962,-1390.35,0.00034028,36]
[331447496,1720421170004,-515.2,0.00034028,35]
[331447497,1720421170043,-500.0,0.00034028,32]
[331447498,1720421170083,-500.0,0.00034028,30]
[331447499,1720421170124,-1390.35,0.00034028,37]
[331447500,1720421170164,-904.55,0.00034028,30]
[331447501,1720421170202,-500.0,0.00034028,31]
[331447502,1720421170239,-904.55,0.00034028,31]
[331447503,1720421170277,-515.2,0.00034028,36]
[331447504,1720421170314,-500.0,0.00034028,32]
[331447505,1720421170353,-266.46591071,0.00034028,33]
[331447506,1720421170390,-904.55,0.00034028,32]
[331447507,1720421170428,-1390.35,0.00034028,38]
[331447508,1720421170468,-500.0,0.00034028,33]
[331447509,1720421170507,-500.0,0.00034028,30]
[331447510,1720421170544,-1390.35,0.00034028,39]
[331447511,1720421170586,-554.53495731,0.00034028,31]
[331447512,1720421170625,-500.0,0.00034028,34]
[331447513,1720421170669,-1390.35,0.00034028,40]
[331447514,1720421170714,-515.2,0.00034028,37]
[331447515,1720421170753,-904.55,0.00034028,33]
[331447516,1720421170791,-515.2,0.00034028,38]
[331447517,1720421170832,-1390.35,0.00034028,41]
[331447518,1720421170870,-904.55,0.00034028,34]
[331447519,1720421170908,-1390.35,0.00034028,42]
[331447520,1720421170948,-515.2,0.00034028,39]
[331447521,1720421170986,-500.0,0.00034028,35]
[331447522,1720421171024,-904.55,0.00034028,35]
[331447523,1720421171062,-500.40628923,0.00034028,30]
[331447524,1720421171102,-1390.35,0.00034028,43]
[331447525,1720421171140,-515.2,0.00034028,40]
[331447526,1720421171177,-1239.51,0.00034028,30]
[331447527,1720421171213,-904.55,0.00034028,36]
[331447528,1720421171250,-500.0,0.00034028,36]
[331447529,1720421171288,-515.2,0.00034028,41]
[331447530,1720421171324,-1239.51,0.00034028,31]
[331447531,1720421171365,-904.55,0.00034028,37]
[331447532,1720421171404,-1390.35,0.00034028,44]
[331447533,1720421171441,-500.0,0.00034028,37]
[331447534,1720421171480,-1239.51,0.00034028,32]
[331447535,1720421171519,-515.2,0.00034028,42]
[331447536,1720421171557,-1390.35,0.00034028,45]
[331447537,1720421171594,-904.55,0.00034028,38]
[331447538,1720421171635,-1239.51,0.00034028,33]
[331447539,1720421171674,-500.0,0.00034028,35]
[331447540,1720421171713,-1390.35,0.00034028,46]
[331447541,1720421171750,-904.55,0.00034028,39]
[331447542,1720421171787,-515.2,0.00034028,43]
[331447543,1720421171824,-223.54999472,0.00034028,38]
[331447544,1720421171863,-1239.51,0.00034028,34]
[331447545,1720421171901,-1390.35,0.00034028,47]
[331447546,1720421171940,-500.0,0.00034028,30]
[331447547,1720421171977,-500.0,0.00034028,36]
[331447548,1720421172015,-904.55,0.00034028,40]
[331447549,1720421172053,-500.0,0.00034028,30]
[331447550,1720421172090,-515.2,0.00034028,44]
[331447551,1720421172128,-1239.51,0.00034028,35]
[331447552,1720421172166,-1390.35,0.00034028,48]
[331447553,1720421172204,-904.55,0.00034028,41]
[331447554,1720421172242,-500.0,0.00034028,31]
[331447555,1720421172280,-500.0,0.00034028,37]
[331447556,1720421172317,-500.0,0.00034028,31]
[331447557,1720421172355,-1239.51,0.00034028,36]
[331447558,1720421172395,-505.61618963,0.00034028,32]
[331447559,1720421172435,-904.55,0.00034028,42]
[331447560,1720421172472,-500.0,0.00034028,38]
[331447561,1720421172510,-500.0,0.00034028,32]
[331447562,1720421172548,-1390.35,0.00034028,49]
[331447563,1720421172586,-515.2,0.00034028,45]
[331447564,1720421172624,-1239.51,0.00034028,37]
[331447565,1720421172668,-904.55,0.00034028,43]
[331447566,1720421172707,-500.0,0.00034028,39]
[331447567,1720421172746,-500.0,0.00034028,33]
[331447568,1720421172783,-1390.35,0.00034028,50]
[331447569,1720421172820,-1239.51,0.00034028,38]
[331447570,1720421172856,-515.2,0.00034028,46]
[331447571,1720421172893,-904.55,0.00034028,44]
[331447572,1720421172930,-500.0,0.00034028,40]
[331447573,1720421172966,-500.0,0.00034028,34]
[331447574,1720421173005,-1390.35,0.00034028,51]
[331447575,1720421173044,-515.2,0.00034028,47]
[331447576,1720421173082,-506.70704853,0.00034028,41]
[331447577,1720421173118,-500.0,0.00034028,35]
[331447578,1720421173158,-904.55,0.00034028,45]
[331447579,1720421173196,-515.2,0.00034028,48]
[331447580,1720421173233,-1390.35,0.00034028,52]
[331447581,1720421173272,-1239.51,0.00034028,39]
[331447582,1720421173310,-904.55,0.00034028,46]
[331447583,1720421173346,-345.28200389,0.00034028,36]
[331447584,1720421173384,-1390.4914438,0.00034028,53]
[331447585,1720421173422,-1239.51,0.00034028,40]
[331447586,1720421173458,-904.55,0.00034028,47]
[331447588,1720421173497,-611.99,0.00034028,30]